[Event "ESP-ch Rapid 2018"]
[Site "Linares"]
[Date "2018.08.19"]
[Round "1"]
[White "Alonso, Jose Antonio"]
[Black "Estremera Panos, Sergio"]
[Result "0-1"]
[ECO "B40"]
[WhiteElo "1920"]
[BlackElo "2337"]
[Annotator "NA"]
[PlyCount "66"]
[EventDate "2018.08.19"]
[EventType "team-tourn"]
[EventCountry "ESP"]
[SourceTitle "playchess.com"]
[Source "ChessBase"]
[SourceQuality "1"]
[TimeControl "900+5"]

1. e4 {[%emt 0:00:00]} c5 {[%emt 0:00:00]} 2. Nf3 {[%emt 0:00:01]} e6 {[%emt 0:00:00]} 3. b3 {[%emt 0:00:02]} Nc6 {[%emt 0:00:05]} 4. Bb2 {[%emt 0:00:01]} d6 {[%emt 0:00:02]} 5. Bb5 {[%emt 0:00:08]} Nf6 {[%emt 0:00:08]} 6. Nc3 {[%emt 0:00:05]} Bd7 {[%emt 0:00:05]} 7. O-O {[%emt 0:00:03]} Be7 {[%emt 0:00:01]} 8. h3 {[%emt 0:00:55]} O-O {[%emt 0:00:03]} 9. Re1 {[%emt 0:00:22]} Qb6 {[%emt 0:01:00]} 10. a4 {[%emt 0:00:39]} a6 {[%emt 0:00:35]} 11. Be2 {[%emt 0:01:18]} Nd4 {[%emt 0:00:33]} 12. Bd3 {[%emt 0:00:27]} e5 {[%emt 0:00:26]} 13. Nd5 {[%emt 0:00:14]} Nxd5 {[%emt 0:00:04]} 14. exd5 {[%emt 0:00:05]} f5 {[%emt 0:00:12]} 15. Rb1 {[%emt 0:00:47]} Bf6 {[%emt 0:00:19]} 16. Nxd4 {[%emt 0:00:28]} cxd4 {[%emt 0:00:05]} 17. c4 {[%emt 0:00:34]} e4 {[%emt 0:00:56]} 18. Bf1 {[%emt 0:00:12]} d3 {[%emt 0:00:08]} 19. Bxf6 {[%emt 0:00:06]} Rxf6 {[%emt 0:00:02]} 20. Kh2 {[%emt 0:00:58]} Qxf2 {[%emt 0:00:10]} 21. Re3 {[%emt 0:00:21]} f4 {[%emt 0:01:53]} 22. Rxe4 {[%emt 0:00:19]} Qg3+ {[%emt 0:00:25]} 23. Kh1 {[%emt 0:00:17]} f3 {[%emt 0:00:11]} 24. Re3 {[%emt 0:00:52]} Raf8 {[%emt 0:01:13]} 25. Qe1 {[%emt 0:06:31]} Qg5 {[%emt 0:00:08]} 26. Qf2 {[%emt 0:00:54]} fxg2+ {[%emt 0:00:59]} 27. Qxg2 {[%emt 0:00:01]} Qh6 {[%emt 0:00:03]} 28. Bxd3 {[%emt 0:00:13]} Rf2 {[%emt 0:01:15]} 29. Qg3 {[%emt 0:00:15]} Rxd2 {[%emt 0:00:18]} 30. Rg1 {[%emt 0:00:01]} Rff2 {[%emt 0:00:08]} 31. Rf3 Rxf3 32. Qxf3 Bxh3 33. Qg3 Bg2# 0-1

[Event "ESP-ch Rapid 2018"]
[Site "Linares"]
[Date "2018.08.19"]
[Round "1"]
[White "Gomez Gandolfo, Ruben"]
[Black "Gavilan Diaz, Mario"]
[Result "0-1"]
[ECO "D11"]
[WhiteElo "1855"]
[BlackElo "2334"]
[Annotator "NA"]
[PlyCount "76"]
[EventDate "2018.08.19"]
[EventType "team-tourn"]
[EventCountry "ESP"]
[SourceTitle "playchess.com"]
[Source "ChessBase"]
[SourceQuality "1"]
[TimeControl "900+5"]

1. Nf3 {[%emt 0:00:00]} d5 {[%emt 0:01:55]} 2. d4 {[%emt 0:00:00]} Nf6 {[%emt 0:00:04]} 3. c4 {[%emt 0:00:10]} c6 {[%emt 0:00:05]} 4. e3 {[%emt 0:00:06]} Bg4 {[%emt 0:00:26]} 5. h3 {[%emt 0:00:07]} Bh5 {[%emt 0:00:25]} 6. Nc3 {[%emt 0:00:04]} e6 {[%emt 0:00:06]} 7. Be2 {[%emt 0:00:18]} Nbd7 {[%emt 0:00:04]} 8. O-O {[%emt 0:00:04]} Bd6 {[%emt 0:00:09]} 9. cxd5 {[%emt 0:00:19]} exd5 {[%emt 0:00:05]} 10. Qc2 {[%emt 0:00:57]} O-O {[%emt 0:00:11]} 11. b3 {[%emt 0:00:12]} Re8 {[%emt 0:00:27]} 12. Nd2 {[%emt 0:00:46]} Bxe2 {[%emt 0:00:47]} 13. Nxe2 {[%emt 0:00:02]} Nf8 {[%emt 0:00:16]} 14. Bb2 {[%emt 0:01:10]} Ng6 {[%emt 0:00:10]} 15. Qf5 {[%emt 0:00:58]} h6 {[%emt 0:00:56]} 16. Qd3 {[%emt 0:01:40]} Ne4 {[%emt 0:01:46]} 17. f4 {[%emt 0:00:55]} Nxd2 {[%emt 0:02:32]} 18. Qxd2 {[%emt 0:00:02]} Qe7 {[%emt 0:00:01]} 19. Bc1 {[%emt 0:00:27]} Nh4 {[%emt 0:01:01]} 20. Ng3 {[%emt 0:00:09]} Qf6 {[%emt 0:00:22]} 21. Qd3 {[%emt 0:00:19]} Re7 {[%emt 0:00:54]} 22. Bd2 {[%emt 0:00:02]} Rae8 {[%emt 0:00:01]} 23. Rae1 {[%emt 0:00:07]} Qg6 {[%emt 0:00:51]} 24. Qxg6 {[%emt 0:00:14]} fxg6 {[%emt 0:00:01]} 25. Rf2 {[%emt 0:02:09]} g5 {[%emt 0:00:52]} 26. Ref1 {[%emt 0:00:30]} gxf4 {[%emt 0:00:36]} 27. exf4 {[%emt 0:00:04]} Kh7 {[%emt 0:00:03]} 28. Kh2 {[%emt 0:00:45]} c5 {[%emt 0:00:02]} 29. Bc3 {[%emt 0:00:36]} Re3 {[%emt 0:00:04]} 30. Bb2 {[%emt 0:00:22]} g5 {[%emt 0:00:06]} 31. Nh5 {[%emt 0:00:12]} Kg6 {[%emt 0:00:08]} 32. g3 {[%emt 0:00:39]} Kxh5 {[%emt 0:00:00]} 33. Bc1 {[%emt 0:01:17]} Re2 {[%emt 0:00:22]} 34. dxc5 {[%emt 0:00:23]} Bxc5 {[%emt 0:00:29]} 35. f5 {[%emt 0:00:31]} Nxf5 {[%emt 0:00:02]} 36. g4+ {[%emt 0:00:08]} Kh4 {[%emt 0:00:05]} 37. Rg2 {[%emt 0:01:09]} Rxg2+ {[%emt 0:00:21]} 38. Kxg2 {[%emt 0:00:01]} Re2+ {[%emt 0:00:01]} 0-1

[Event "ESP-ch Rapid 2018"]
[Site "Linares"]
[Date "2018.08.19"]
[Round "1"]
[White "Gomez Fernandez, Alfredo"]
[Black "Garcia Cuenca, Victor"]
[Result "0-1"]
[ECO "B40"]
[WhiteElo "1827"]
[BlackElo "2351"]
[Annotator "ChessBase"]
[PlyCount "78"]
[EventDate "2018.08.19"]
[EventType "team-tourn"]
[EventCountry "ESP"]
[SourceTitle "playchess.com"]
[Source "ChessBase"]
[SourceQuality "1"]
[TimeControl "900+5"]

1. e4 {[%emt 0:00:42]} c5 {[%emt 0:00:00]} 2. Nf3 {[%emt 0:00:13]} e6 {[%emt 0:00:00]} 3. d3 {[%emt 0:00:11]} Nc6 {[%emt 0:00:02]} 4. g3 {[%emt 0:00:04]} Nge7 {[%emt 0:00:06]} 5. Bg2 {[%emt 0:00:04]} d5 {[%emt 0:00:02]} 6. Nbd2 {[%emt 0:00:03]} g6 {[%emt 0:00:11]} 7. O-O {[%emt 0:00:21]} Bg7 {[%emt 0:00:04]} 8. Re1 {[%emt 0:00:08]} O-O {[%emt 0:01:18]} 9. c3 {[%emt 0:00:05]} b5 {[%emt 0:00:23]} 10. Qe2 {[%emt 0:00:15]} b4 {[%emt 0:00:10]} 11. e5 {[%emt 0:00:42]} a5 {[%emt 0:00:08]} 12. Nb3 {[%emt 0:00:43]} c4 {[%emt 0:02:42]} 13. Nc5 {[%emt 0:02:00]} cxd3 {[%emt 0:00:05]} 14. Qxd3 {[%emt 0:00:20]} Qc7 {[%emt 0:01:09]} 15. Bf4 {[%emt 0:01:36]} Nxe5 {[%emt 0:02:31]} 16. Nxe5 {[%emt 0:00:38]} Qxc5 {[%emt 0:00:03]} 17. cxb4 {[%emt 0:01:29]} Qxb4 {[%emt 0:00:20]} 18. a3 {[%emt 0:00:57]} Qb6 {[%emt 0:00:32]} 19. Rab1 {[%emt 0:00:34]} Ba6 {[%emt 0:00:04]} 20. Qd2 {[%emt 0:00:13]} Rfd8 {[%emt 0:01:02]} 21. b4 {[%emt 0:00:15]} a4 {[%emt 0:00:18]} 22. Rec1 {[%emt 0:01:06]} Rac8 {[%emt 0:00:39]} 23. Rxc8 {[%emt 0:00:28]} Nxc8 {[%emt 0:00:16]} 24. Rc1 {[%emt 0:00:42]} Bb5 {[%emt 0:00:43]} 25. Ng4 {[%emt 0:00:22]} Nd6 {[%emt 0:00:14]} 26. Nh6+ {[%emt 0:00:49]} Kf8 {[%emt 0:00:05]} 27. Be3 {[%emt 0:00:26]} d4 {[%emt 0:00:05]} 28. Bg5 {[%emt 0:00:09]} f6 {[%emt 0:00:19]} 29. Bh4 {[%emt 0:00:18]} e5 {[%emt 0:01:03]} 30. Ng4 {[%emt 0:00:26]} Nc4 {[%emt 0:00:09]} 31. Qa2 {[%emt 0:00:14]} g5 {[%emt 0:00:44]} 32. Rxc4 {[%emt 0:00:27]} Bxc4 {[%emt 0:00:03]} 33. Qxc4 {[%emt 0:00:01]} gxh4 {[%emt 0:00:05]} 34. b5 {[%emt 0:00:10]} d3 {[%emt 0:00:15]} 35. Bd5 {[%emt 0:00:08]} d2 {[%emt 0:00:07]} 36. Ne3 {[%emt 0:00:21]} Qd6 {[%emt 0:00:24]} 37. Qe2 {[%emt 0:00:11]} f5 {[%emt 0:01:07]} 38. Qxd2 {[%emt 0:00:12]} f4 {[%emt 0:00:02]} 39. gxf4 {[%emt 0:00:05]} exf4 0-1

[Event "ESP-ch Rapid 2018"]
[Site "Linares"]
[Date "2018.08.19"]
[Round "1"]
[White "Costa Tejedor, Juan Carlos"]
[Black "Calzetta Ruiz, Monica"]
[Result "0-1"]
[ECO "B34"]
[WhiteElo "1817"]
[BlackElo "2302"]
[Annotator "NA"]
[PlyCount "64"]
[EventDate "2018.08.19"]
[EventType "team-tourn"]
[EventCountry "ESP"]
[SourceTitle "playchess.com"]
[Source "ChessBase"]
[SourceQuality "1"]
[TimeControl "900+5"]

1. e4 {[%emt 0:00:00]} c5 {[%emt 0:00:00]} 2. Nf3 {[%emt 0:00:00]} Nc6 {[%emt 0:00:00]} 3. d4 {[%emt 0:00:10]} cxd4 {[%emt 0:00:01]} 4. Nxd4 {[%emt 0:00:01]} g6 {[%emt 0:00:03]} 5. Nc3 {[%emt 0:00:22]} Bg7 {[%emt 0:00:03]} 6. Be3 {[%emt 0:00:03]} Nf6 {[%emt 0:00:05]} 7. Be2 {[%emt 0:00:36]} O-O {[%emt 0:00:05]} 8. O-O {[%emt 0:00:17]} d5 {[%emt 0:00:03]} 9. exd5 {[%emt 0:02:32]} Nxd5 {[%emt 0:00:03]} 10. Nxd5 {[%emt 0:01:25]} Qxd5 {[%emt 0:02:39]} 11. Bf3 {[%emt 0:00:26]} Qc4 {[%emt 0:00:02]} 12. Nxc6 {[%emt 0:00:14]} bxc6 {[%emt 0:00:03]} 13. c3 {[%emt 0:00:21]} Be6 {[%emt 0:00:50]} 14. Qc2 {[%emt 0:01:41]} Rfd8 {[%emt 0:00:15]} 15. Rfd1 {[%emt 0:01:38]} Rxd1+ {[%emt 0:00:58]} 16. Qxd1 {[%emt 0:00:02]} a5 {[%emt 0:00:09]} 17. g3 {[%emt 0:02:38]} a4 {[%emt 0:00:11]} 18. Be2 {[%emt 0:01:15]} Qd5 {[%emt 0:00:22]} 19. Qxd5 {[%emt 0:00:03]} cxd5 {[%emt 0:00:04]} 20. Bc5 {[%emt 0:00:06]} Bf6 {[%emt 0:00:11]} 21. Bf3 {[%emt 0:00:15]} Rb8 {[%emt 0:00:02]} 22. Ba3 {[%emt 0:00:09]} d4 {[%emt 0:00:10]} 23. cxd4 {[%emt 0:01:36]} Bxd4 {[%emt 0:00:02]} 24. Bxe7 {[%emt 0:00:40]} Rxb2 {[%emt 0:00:10]} 25. Rd1 {[%emt 0:00:11]} Bxf2+ {[%emt 0:00:32]} 26. Kh1 {[%emt 0:00:07]} Bb6 {[%emt 0:00:27]} 27. a3 {[%emt 0:00:12]} Kg7 {[%emt 0:00:19]} 28. Bb4 {[%emt 0:00:08]} Rxb4 {[%emt 0:00:48]} 29. axb4 {[%emt 0:00:02]} a3 {[%emt 0:00:01]} 30. Ra1 {[%emt 0:00:06]} a2 {[%emt 0:00:03]} 31. b5 {[%emt 0:00:13]} Bd4 {[%emt 0:00:02]} 32. Rxa2 {[%emt 0:00:05]} Bxa2 {[%emt 0:00:03]} 0-1

[Event "ESP-ch Rapid 2018"]
[Site "Linares"]
[Date "2018.08.19"]
[Round "1"]
[White "Mohamed Garcia, Ismael"]
[Black "Beltran De Heredia E, Miguel"]
[Result "0-1"]
[ECO "A45"]
[WhiteElo "1814"]
[BlackElo "2229"]
[Annotator "NA"]
[PlyCount "86"]
[EventDate "2018.08.19"]
[EventType "team-tourn"]
[EventCountry "ESP"]
[SourceTitle "playchess.com"]
[Source "ChessBase"]
[SourceQuality "1"]
[TimeControl "900+5"]

1. d4 {[%emt 0:00:00]} Nf6 {[%emt 0:00:00]} 2. Bf4 {[%emt 0:00:01]} e6 {[%emt 0:00:00]} 3. e3 {[%emt 0:00:01]} c5 {[%emt 0:00:02]} 4. c3 {[%emt 0:00:02]} Nc6 $11 {[%emt 0:00:02]} 5. Nd2 {[%emt 0:00:03]} d5 {[%emt 0:00:07]} 6. Bd3 {[%emt 0:00:09]} Bd6 {[%emt 0:00:10]} 7. Bg3 {[%emt 0:00:02]} O-O {[%emt 0:00:15]} 8. Ngf3 {[%emt 0:00:01]} b6 {[%emt 0:00:11]} 9. Ne5 {[%emt 0:00:56]} Bb7 {[%emt 0:00:09]} 10. O-O {[%emt 0:00:06]} Qc7 {[%emt 0:00:34]} 11. Ndf3 {[%emt 0:00:05]} h6 {[%emt 0:00:32]} 12. Rc1 {[%emt 0:00:06]} Nd7 {[%emt 0:00:22]} 13. Nxd7 {[%emt 0:00:22]} Qxd7 {[%emt 0:00:02]} 14. Bxd6 {[%emt 0:00:02]} Qxd6 {[%emt 0:00:02]} 15. Bb1 {[%emt 0:00:02]} Rad8 {[%emt 0:01:06]} 16. Qc2 {[%emt 0:00:55]} f5 {[%emt 0:00:45]} 17. Rfd1 {[%emt 0:00:09]} c4 {[%emt 0:00:55]} 18. b4 {[%emt 0:00:46]} b5 {[%emt 0:00:42]} 19. a4 {[%emt 0:00:14]} a6 {[%emt 0:00:14]} 20. Qe2 {[%emt 0:01:21]} g5 {[%emt 0:01:15]} 21. h3 {[%emt 0:00:01]} Qe7 {[%emt 0:00:21]} 22. Bc2 {[%emt 0:00:10]} Qf6 {[%emt 0:00:45]} 23. axb5 {[%emt 0:00:45]} axb5 {[%emt 0:00:01]} 24. Ra1 {[%emt 0:01:40]} Ra8 {[%emt 0:00:01]} 25. Qe1 {[%emt 0:00:28]} Kg7 {[%emt 0:00:50]} 26. Rxa8 {[%emt 0:00:03]} Rxa8 {[%emt 0:00:01]} 27. Ra1 {[%emt 0:00:01]} Qd8 {[%emt 0:00:40]} 28. Qb1 {[%emt 0:00:44]} Qb8 {[%emt 0:00:12]} 29. Rxa8 {[%emt 0:01:33]} Qxa8 {[%emt 0:00:25]} 30. g4 {[%emt 0:00:02]} fxg4 {[%emt 0:01:00]} 31. hxg4 {[%emt 0:00:01]} Qa3 {[%emt 0:01:40]} 32. Bh7 {[%emt 0:00:16]} Ne7 {[%emt 0:00:01]} 33. Qc2 {[%emt 0:00:40]} Bc6 {[%emt 0:00:14]} 34. Ne5 {[%emt 0:01:11]} Be8 {[%emt 0:00:01]} 35. f4 {[%emt 0:00:06]} Qa1+ {[%emt 0:00:14]} 36. Kg2 {[%emt 0:00:03]} Qe1 {[%emt 0:00:11]} 37. f5 {[%emt 0:02:51]} Kxh7 {[%emt 0:00:43]} 38. f6+ {[%emt 0:00:13]} Ng6 {[%emt 0:00:02]} 39. f7 {[%emt 0:00:07]} Bxf7 {[%emt 0:00:02]} 40. Nxf7 {[%emt 0:00:10]} Kg7 {[%emt 0:00:11]} 41. Nd6 {[%emt 0:00:30]} Nh4+ {[%emt 0:01:09]} 42. Kh2 {[%emt 0:00:45]} Qxe3 {[%emt 0:00:12]} 43. Nxb5 {[%emt 0:00:40]} Nf3+ {[%emt 0:00:09]} 0-1

[Event "ESP-ch Rapid 2018"]
[Site "Linares"]
[Date "2018.08.19"]
[Round "1"]
[White "Meler Tevar, Sergio"]
[Black "Vinuela Diaz, Saul"]
[Result "0-1"]
[ECO "A46"]
[WhiteElo "1807"]
[BlackElo "2216"]
[Annotator "NA"]
[PlyCount "48"]
[EventDate "2018.08.19"]
[EventType "team-tourn"]
[EventCountry "ESP"]
[SourceTitle "playchess.com"]
[Source "ChessBase"]
[SourceQuality "1"]
[TimeControl "900+5"]

1. Nf3 {[%emt 0:00:00]} Nf6 {[%emt 0:00:00]} 2. d4 {[%emt 0:00:00]} e6 {[%emt 0:00:02]} 3. e3 {[%emt 0:00:00]} c5 {[%emt 0:00:02]} 4. c4 {[%emt 0:00:03]} d5 {[%emt 0:00:20]} 5. Nc3 {[%emt 0:00:14]} Nc6 {[%emt 0:00:10]} 6. cxd5 {[%emt 0:00:11]} Nxd5 {[%emt 0:00:15]} 7. Bc4 {[%emt 0:00:35]} cxd4 {[%emt 0:00:31]} 8. Nxd4 {[%emt 0:00:17]} Bb4 {[%emt 0:00:14]} 9. Nxc6 {[%emt 0:00:33]} bxc6 {[%emt 0:00:06]} 10. Bd2 {[%emt 0:00:08]} O-O {[%emt 0:00:57]} 11. O-O {[%emt 0:00:03]} Bd6 {[%emt 0:00:12]} 12. Qf3 {[%emt 0:00:27]} Qh4 {[%emt 0:00:13]} 13. h3 {[%emt 0:00:35]} Qxc4 {[%emt 0:00:04]} 14. e4 {[%emt 0:00:32]} Nxc3 {[%emt 0:00:56]} 15. Bxc3 {[%emt 0:00:07]} e5 {[%emt 0:00:03]} 16. Rfd1 {[%emt 0:00:14]} Qe6 {[%emt 0:00:10]} 17. Rac1 {[%emt 0:00:16]} Ba6 {[%emt 0:00:15]} 18. Ba5 {[%emt 0:00:23]} Be7 {[%emt 0:00:39]} 19. a3 {[%emt 0:01:52]} Rfc8 {[%emt 0:00:07]} 20. Rc3 {[%emt 0:00:38]} Rab8 {[%emt 0:00:13]} 21. Qe3 {[%emt 0:00:21]} c5 {[%emt 0:00:59]} 22. Qd2 {[%emt 0:00:10]} g6 {[%emt 0:00:44]} 23. Rf3 {[%emt 0:01:34]} Bb7 {[%emt 0:01:00]} 24. Re3 {[%emt 0:00:15]} Bg5 {[%emt 0:00:09]} 0-1

[Event "ESP-ch Rapid 2018"]
[Site "Linares"]
[Date "2018.08.19"]
[Round "1"]
[White "Mendez Martinez, Miguel Angel"]
[Black "Sanchez Jimenez, Juan Carlos"]
[Result "0-1"]
[ECO "A91"]
[WhiteElo "1763"]
[BlackElo "2228"]
[Annotator "NA"]
[PlyCount "58"]
[EventDate "2018.08.19"]
[EventType "team-tourn"]
[EventCountry "ESP"]
[SourceTitle "playchess.com"]
[Source "ChessBase"]
[SourceQuality "1"]
[TimeControl "900+5"]

1. d4 {[%emt 0:00:00]} e6 {[%emt 0:00:00]} 2. c4 {[%emt 0:00:02]} f5 {[%emt 0:00:03]} 3. g3 {[%emt 0:00:13]} Nf6 {[%emt 0:00:02]} 4. Bg2 {[%emt 0:00:03]} Be7 {[%emt 0:00:08]} 5. Nc3 {[%emt 0:00:13]} O-O {[%emt 0:00:03]} 6. Nf3 {[%emt 0:00:06]} d6 {[%emt 0:00:02]} 7. O-O {[%emt 0:00:04]} Ne4 {[%emt 0:00:05]} 8. Qc2 {[%emt 0:00:14]} Nxc3 {[%emt 0:00:08]} 9. Qxc3 {[%emt 0:00:04]} a5 {[%emt 0:00:02]} 10. b3 {[%emt 0:00:03]} Bf6 {[%emt 0:00:02]} 11. Bb2 {[%emt 0:00:23]} Nc6 {[%emt 0:00:02]} 12. e3 {[%emt 0:00:02]} e5 {[%emt 0:00:12]} 13. dxe5 {[%emt 0:00:26]} dxe5 {[%emt 0:00:04]} 14. Rfd1 {[%emt 0:00:18]} Qe8 {[%emt 0:00:46]} 15. Qd2 {[%emt 0:01:40]} Be6 {[%emt 0:01:49]} 16. Qe2 {[%emt 0:01:58]} Qh5 {[%emt 0:02:55]} 17. Rd2 {[%emt 0:01:44]} Rfd8 {[%emt 0:01:30]} 18. Rad1 {[%emt 0:00:03]} Rxd2 {[%emt 0:00:11]} 19. Rxd2 {[%emt 0:00:03]} a4 {[%emt 0:01:05]} 20. Nd4 {[%emt 0:03:35]} Qxe2 {[%emt 0:00:21]} 21. Nxe2 {[%emt 0:00:02]} axb3 {[%emt 0:00:08]} 22. axb3 {[%emt 0:00:02]} Kf7 {[%emt 0:00:45]} 23. Nc3 {[%emt 0:01:02]} e4 {[%emt 0:01:52]} 24. f3 {[%emt 0:00:54]} exf3 {[%emt 0:00:30]} 25. Bxf3 {[%emt 0:00:01]} Ne5 {[%emt 0:00:11]} 26. Bxb7 {[%emt 0:00:28]} Rb8 {[%emt 0:00:01]} 27. Bd5 {[%emt 0:00:03]} Rxb3 {[%emt 0:00:02]} 28. Bxe6+ {[%emt 0:00:19]} Kxe6 {[%emt 0:00:01]} 29. Nb5 {[%emt 0:00:09]} Nf3+ {[%emt 0:00:02]} 0-1

[Event "ESP-ch Rapid 2018"]
[Site "Linares"]
[Date "2018.08.19"]
[Round "2"]
[White "Cuevas Fernandez, Jose Alberto"]
[Black "Fernandez Garcia, Jose Miguel"]
[Result "0-1"]
[ECO "D08"]
[WhiteElo "2147"]
[BlackElo "2404"]
[Annotator "ChessBase"]
[PlyCount "71"]
[EventDate "2018.08.19"]
[EventType "team-tourn"]
[EventCountry "ESP"]
[SourceTitle "playchess.com"]
[Source "ChessBase"]
[SourceQuality "1"]
[TimeControl "900+5"]

1. d4 {[%emt 0:00:00]} d5 {[%emt 0:01:29]} 2. c4 {[%emt 0:00:00]} e5 {[%emt 0:00:01]} 3. dxe5 {[%emt 0:00:02]} d4 {[%emt 0:00:01]} 4. Nf3 {[%emt 0:00:02]} Nc6 {[%emt 0:00:01]} 5. a3 {[%emt 0:00:01]} Nge7 {[%emt 0:00:01]} 6. b4 {[%emt 0:01:16]} Ng6 {[%emt 0:00:01]} 7. Bb2 {[%emt 0:00:01]} a5 {[%emt 0:00:01]} 8. b5 {[%emt 0:00:06]} Ncxe5 {[%emt 0:00:01]} 9. Nxe5 {[%emt 0:00:03]} Nxe5 {[%emt 0:00:01]} 10. e3 {[%emt 0:00:09]} Be6 {[%emt 0:00:01]} 11. Qc1 {[%emt 0:01:45]} Bc5 {[%emt 0:00:56]} 12. Be2 {[%emt 0:01:51]} Qg5 {[%emt 0:03:26]} 13. O-O {[%emt 0:00:38]} Bh3 {[%emt 0:00:30]} 14. g3 {[%emt 0:01:20]} d3 {[%emt 0:02:10]} 15. Bd1 {[%emt 0:03:07]} Qf5 {[%emt 0:01:32]} 16. Qc3 {[%emt 0:04:53]} Nf3+ {[%emt 0:02:03]} 17. Bxf3 {[%emt 0:00:02]} Qxf3 {[%emt 0:00:01]} 18. Qe5+ {[%emt 0:00:01]} Be7 {[%emt 0:00:01]} 19. Qd5 {[%emt 0:00:03]} Qe2 {[%emt 0:00:01]} 20. Nd2 {[%emt 0:01:07]} Qxd2 {[%emt 0:00:50]} 21. Bxg7 {[%emt 0:00:11]} Rg8 {[%emt 0:00:02]} 22. Qxb7 {[%emt 0:00:04]} Rd8 {[%emt 0:01:11]} 23. Rfd1 {[%emt 0:00:01]} Qe2 {[%emt 0:00:24]} 24. Be5 {[%emt 0:00:09]} Rd7 {[%emt 0:01:34]} 25. Qa8+ {[%emt 0:00:07]} Bd8 {[%emt 0:00:02]} 26. Qe4 {[%emt 0:00:01]} Re7 {[%emt 0:00:04]} 27. Qc6+ {[%emt 0:00:01]} Kf8 {[%emt 0:00:03]} 28. Qh6+ {[%emt 0:00:02]} Ke8 {[%emt 0:00:04]} 29. Qc6+ {[%emt 0:00:01]} Rd7 {[%emt 0:00:10]} 30. Qe4 {[%emt 0:00:02]} f5 {[%emt 0:00:18]} 31. Qc6 {[%emt 0:00:12]} Rg6 {[%emt 0:00:06]} 32. Qh1 {[%emt 0:00:13]} d2 {[%emt 0:00:12]} 33. Bd4 {[%emt 0:00:05]} Bg4 {[%emt 0:00:05]} 34. Qg2 {[%emt 0:00:08]} Qxd1+ {[%emt 0:00:13]} 35. Rxd1 {[%emt 0:00:04]} Bxd1 {[%emt 0:00:01]} 36. f4 0-1

[Event "ESP-ch Rapid 2018"]
[Site "Linares"]
[Date "2018.08.19"]
[Round "3"]
[White "Campos Gambuti, Luis Maria"]
[Black "Alvarez Serrano, Carlos"]
[Result "1/2-1/2"]
[ECO "D01"]
[WhiteElo "2382"]
[BlackElo "2225"]
[Annotator "NA"]
[PlyCount "145"]
[EventDate "2018.08.19"]
[EventType "team-tourn"]
[EventCountry "ESP"]
[SourceTitle "playchess.com"]
[Source "ChessBase"]
[SourceQuality "1"]
[TimeControl "900+5"]

1. d4 {[%emt 0:00:00]} d5 {[%emt 0:00:00]} 2. Nc3 {[%emt 0:00:00]} Nf6 {[%emt 0:00:00]} 3. Bg5 {[%emt 0:00:00]} Nbd7 {[%emt 0:00:03]} 4. Qd3 {[%emt 0:00:00]} h6 {[%emt 0:00:08]} 5. Bh4 {[%emt 0:00:01]} c6 {[%emt 0:00:01]} 6. Nf3 {[%emt 0:00:05]} g5 {[%emt 0:00:16]} 7. Bg3 {[%emt 0:00:01]} Bg7 {[%emt 0:00:02]} 8. h4 {[%emt 0:00:34]} g4 {[%emt 0:00:02]} 9. Ne5 {[%emt 0:00:01]} Nh5 {[%emt 0:00:26]} 10. Nxg4 {[%emt 0:02:32]} Nxg3 {[%emt 0:00:12]} 11. fxg3 {[%emt 0:00:02]} Nc5 {[%emt 0:00:42]} 12. Qf3 {[%emt 0:01:40]} Bxd4 {[%emt 0:00:18]} 13. O-O-O {[%emt 0:00:02]} Bg7 {[%emt 0:00:28]} 14. e4 {[%emt 0:00:12]} Bxg4 {[%emt 0:00:21]} 15. Qxg4 {[%emt 0:00:14]} Bxc3 {[%emt 0:00:03]} 16. bxc3 {[%emt 0:00:02]} Nxe4 {[%emt 0:00:10]} 17. c4 {[%emt 0:00:10]} Qa5 {[%emt 0:00:26]} 18. Rd3 {[%emt 0:01:09]} Qxa2 {[%emt 0:00:11]} 19. Qg7 {[%emt 0:01:21]} O-O-O {[%emt 0:00:18]} 20. cxd5 {[%emt 0:00:33]} cxd5 {[%emt 0:00:02]} 21. Rb3 {[%emt 0:00:43]} f6 {[%emt 0:00:25]} 22. Qxe7 {[%emt 0:00:44]} Rd7 {[%emt 0:00:25]} 23. Qa3 {[%emt 0:01:08]} Qxa3+ {[%emt 0:00:13]} 24. Rxa3 {[%emt 0:00:02]} Rg8 {[%emt 0:00:15]} 25. Rxa7 {[%emt 0:00:53]} Kb8 {[%emt 0:00:07]} 26. Ra4 {[%emt 0:00:29]} Nxg3 {[%emt 0:00:55]} 27. Rg1 {[%emt 0:00:01]} Nxf1 {[%emt 0:00:38]} 28. Rxf1 {[%emt 0:00:01]} Rxg2 {[%emt 0:00:01]} 29. Rxf6 {[%emt 0:00:06]} Rc7 {[%emt 0:00:01]} 30. Rf8+ {[%emt 0:00:08]} Rc8 {[%emt 0:00:01]} 31. Ra8+ {[%emt 0:00:01]} Kxa8 {[%emt 0:00:01]} 32. Rxc8+ {[%emt 0:00:02]} Ka7 {[%emt 0:00:00]} 33. Rd8 {[%emt 0:00:19]} Rg4 {[%emt 0:00:14]} 34. Rxd5 {[%emt 0:00:03]} Rxh4 {[%emt 0:00:02]} 35. Rd6 {[%emt 0:00:09]} Rh2 {[%emt 0:00:08]} 36. Kb2 {[%emt 0:00:01]} Kb8 {[%emt 0:00:05]} 37. Rd7 {[%emt 0:00:04]} Ka7 {[%emt 0:00:17]} 38. Rd6 {[%emt 0:00:01]} b6 {[%emt 0:00:07]} 39. Kb3 {[%emt 0:00:35]} Ka6 {[%emt 0:00:02]} 40. Rd5 {[%emt 0:00:03]} h5 {[%emt 0:00:31]} 41. c4 {[%emt 0:00:29]} h4 {[%emt 0:00:40]} 42. Rh5 {[%emt 0:00:03]} h3 {[%emt 0:00:41]} 43. Ka3 {[%emt 0:00:01]} Rh1 {[%emt 0:00:24]} 44. Kb3 {[%emt 0:00:03]} h2 {[%emt 0:00:09]} 45. Kb2 {[%emt 0:00:09]} Kb7 {[%emt 0:00:01]} 46. Rh6 {[%emt 0:00:12]} Kc7 {[%emt 0:00:00]} 47. Ka2 {[%emt 0:00:02]} Kd7 {[%emt 0:00:03]} 48. Kb2 {[%emt 0:00:02]} Ke7 {[%emt 0:00:02]} 49. Ka2 {[%emt 0:00:02]} Kf7 {[%emt 0:00:02]} 50. Kb2 {[%emt 0:00:05]} Kg7 {[%emt 0:00:01]} 51. Rh3 {[%emt 0:00:02]} Kg6 {[%emt 0:00:03]} 52. Rh8 {[%emt 0:00:06]} Kf5 {[%emt 0:00:03]} 53. Ka2 {[%emt 0:00:07]} Ke4 {[%emt 0:00:05]} 54. Kb2 {[%emt 0:00:03]} Kd3 55. Rh4 Kd2 {[%emt 0:00:19]} 56. Rh3 {[%emt 0:00:11]} Ke2 {[%emt 0:00:08]} 57. Ka2 {[%emt 0:00:06]} Kf2 {[%emt 0:00:04]} 58. Rh8 {[%emt 0:00:04]} Kg2 {[%emt 0:00:08]} 59. Rg8+ {[%emt 0:00:01]} Kf3 {[%emt 0:00:01]} 60. Rh8 {[%emt 0:00:03]} Kg3 {[%emt 0:00:09]} 61. Rg8+ {[%emt 0:00:01]} Kf4 {[%emt 0:00:01]} 62. Rh8 {[%emt 0:00:02]} Ke5 {[%emt 0:00:01]} 63. Rh4 {[%emt 0:00:09]} Kd6 {[%emt 0:00:02]} 64. Rh5 {[%emt 0:00:01]} Rc1 {[%emt 0:00:59]} 65. Rxh2 {[%emt 0:00:05]} Rxc4 {[%emt 0:00:01]} 66. Kb3 {[%emt 0:00:09]} Rg4 {[%emt 0:00:03]} 67. Rh5 {[%emt 0:00:03]} Kc6 {[%emt 0:00:03]} 68. Kb2 {[%emt 0:00:06]} Rg3 {[%emt 0:00:03]} 69. Rf5 {[%emt 0:00:02]} b5 {[%emt 0:00:01]} 70. Re5 {[%emt 0:00:02]} Kb6 {[%emt 0:00:01]} 71. Rf5 {[%emt 0:00:03]} Ka5 {[%emt 0:00:01]} 72. Rf4 {[%emt 0:00:05]} b4 {[%emt 0:00:06]} 73. Rf8 {[%emt 0:00:02]} 1/2-1/2